bitfinex-derivatives/quotes_BNBF0:USTF0_20250810
["timestamp","ask_amount","ask_price","bid_price","bid_amount"]
[1754803833768,0.21421712,813.35,812.13,1.65363534]
[1754803833967,0.21421712,813.35,811.19,2.75971933]
[1754803833968,0.21421712,813.35,812.22,1.65363534]
[1754803834664,0.21421712,813.35,812.23,1.65363534]
[1754803834864,0.21421712,813.35,812.22,1.65363534]
[1754803835064,0.21421712,813.35,812.23,1.65363534]
[1754803835268,0.21421712,813.35,812.22,1.65363534]
[1754803835463,0.21421712,813.35,812.23,1.65363534]
[1754803835663,0.21421712,813.35,812.35,1.65363534]
[1754803835862,0.21421712,813.35,812.37,1.65363534]
[1754803836065,0.21421712,813.35,812.46,1.65363534]
[1754803836264,0.21421712,813.35,812.52,1.65363534]
[1754803836864,0.21421712,813.35,812.49,1.65363534]
[1754803837269,0.21421712,813.35,812.47,1.65363534]
[1754803837465,0.21421712,813.35,812.46,1.65363534]
[1754803837668,0.21421712,813.35,811.69,2.75971933]
[1754803837669,0.21421712,813.35,812.44,1.65363534]
[1754803837871,0.21421712,813.35,812.39,1.65363534]
[1754803838972,0.21421712,813.35,812.4,1.65363534]
[1754803839368,0.21421712,813.35,812.41,1.65363534]
[1754803839570,0.21421712,813.35,812.42,1.65363534]
[1754803840471,0.21421712,813.35,811.4,1.425]
[1754803840472,0.21421712,813.35,812.44,1.65363534]
[1754803843983,0.21421712,813.35,812.42,1.65363534]
[1754803844485,0.21421712,813.35,812.39,1.65363534]
[1754803844783,0.21421712,813.35,812.4,1.65363534]
[1754803844984,0.21421712,813.35,812.42,1.65363534]
[1754803845183,0.5,813.32,812.35,1.65363534]
[1754803845387,0.5,813.29,812.33,1.65363534]
[1754803846689,0.291,813.21,812.15,1.65363534]
[1754803847286,0.291,813.21,812.16,1.65363534]
[1754803847589,0.291,813.21,812.15,1.65363534]
[1754803848188,0.29,813.16,812.15,1.65363534]
[1754803848889,0.29,813.16,812.17,1.65363534]
[1754803850290,0.29,813.16,812.18,1.65363534]
[1754803851891,0.5,813.29,812.18,1.65363534]
[1754803852295,0.29,813.16,812.19,1.65363534]
[1754803853992,0.29,813.16,812.2,1.65363534]
[1754803854191,0.29,813.16,812.22,1.65363534]
[1754803854694,0.29,813.16,812.2,1.65363534]
[1754803854994,0.29,813.23,812.2,1.65363534]
[1754803855192,0.29,813.23,812.21,1.65363534]
[1754803855494,0.5,813.29,812.21,1.65363534]
[1754803855691,0.29,813.26,812.21,1.65363534]
[1754803855995,0.29,813.26,811.46,2.75971933]
[1754803855996,0.29,813.26,812.23,1.65363534]
[1754803856491,0.29,813.26,812.33,1.65363534]
[1754803857393,0.29,813.26,812.32,1.65363534]
[1754803857593,0.29,813.26,812.33,1.65363534]
[1754803857791,0.29,813.26,812.31,1.65363534]
[1754803858196,0.29,813.26,812.3,1.65363534]
[1754803858396,0.29,813.28,812.33,1.65363534]
[1754803858693,0.29,813.28,812.32,1.65363534]
[1754803859296,0.29,813.28,812.33,1.65363534]
[1754803859497,0.29,813.28,811.96,1.65363534]
[1754803859696,0.5,813.06,811.91,1.65363534]
[1754803860096,0.5,813.06,812.04,1.65363534]
[1754803860997,0.5,813.19,812.06,1.65363534]
[1754803861494,0.5,813.19,812.07,1.65363534]
[1754803861696,0.348,813.18,812.07,1.65363534]
[1754803861992,0.5,813.26,812.23,1.65363534]
[1754803862493,0.348,813.24,812.24,1.65363534]
[1754803862797,0.348,813.25,812.33,1.65363534]
[1754803862996,0.5,813.28,812.33,1.65363534]
[1754803863494,0.5,813.28,812.34,1.65363534]
[1754803863897,0.5,813.28,812.35,1.65363534]
[1754803864097,0.5,813.28,812.34,1.65363534]
[1754803864297,0.5,813.28,812.39,1.65363534]
[1754803864497,0.5,813.32,812.39,1.65363534]
[1754803864794,0.21421712,813.35,812.39,1.65363534]
[1754803864992,0.348,813.29,812.39,1.65363534]
[1754803865197,0.21421712,813.35,812.39,1.65363534]
[1754803865497,0.21421712,813.35,812.43,1.65363534]
[1754803865898,0.21421712,813.35,812.42,1.65363534]
[1754803866393,0.21421712,813.35,812.43,1.65363534]
[1754803867296,0.21421712,813.35,812.47,1.65363534]
[1754803867494,0.21421712,813.35,811.36,3.86360707]
[1754803867495,0.56621712,813.35,812.54,1.65363534]
[1754803867793,0.56621712,813.35,811.9,2.75971933]
[1754803867794,0.21421712,813.35,812.51,1.65363534]
[1754803868599,0.21421712,813.35,812.5,1.65363534]
[1754803868795,0.21421712,813.35,812.47,1.65363534]
[1754803869197,0.295,813.25,812.47,1.65363534]
[1754803869397,0.295,813.25,812.49,1.65363534]
[1754803870898,0.295,813.25,812.52,1.65363534]
[1754803871294,0.295,813.25,811.56,3.86360707]
[1754803871295,0.295,813.25,812.53,1.65363534]
[1754803871598,0.295,813.25,812.51,1.65363534]
[1754803872994,0.5,813.16,812.51,1.65363534]
[1754803873399,0.5,813.16,812.49,1.65363534]
[1754803873595,0.5,813.16,812.51,1.65363534]
[1754803874097,0.5,813.16,812.37,1.65363534]
[1754803874397,0.5,813.27,812.39,1.65363534]
[1754803876501,0.5,813.27,812.4,1.65363534]
[1754803876702,0.5,813.27,812.35,1.65363534]
[1754803876901,0.5,813.27,812.36,1.65363534]
[1754803877298,0.5,813.27,811.67,2.75971933]
[1754803877299,0.5,813.27,812.34,1.65363534]
[1754803877501,0.77207573,813.26,812.22,1.65363534]
[1754803877799,0.5,813.27,812.24,1.65363534]
[1754803877998,0.77210067,813.26,812.24,1.65363534]
[1754803878200,0.5,813.27,812.24,1.65363534]
[1754803878497,0.77211435,813.26,812.24,1.65363534]
[1754803878697,0.5,813.27,812.24,1.65363534]
[1754803878901,0.483,813.21,812.24,1.65363534]
[1754803879902,0.5,813.27,812.24,1.65363534]
[1754803880104,0.5,813.27,812.23,1.65363534]
[1754803880403,0.5,813.27,812.03,1.65363534]
[1754803880599,0.71421712,813.35,812.11,1.65363534]
[1754803880800,0.21421712,813.35,812.11,1.65363534]
[1754803881300,0.21421712,813.35,812.12,1.65363534]
[1754803881500,0.21421712,813.35,812.14,1.65363534]
[1754803882401,0.21421712,813.35,812.16,1.65363534]
[1754803882706,0.21421712,813.35,812.17,1.05666488]
[1754803882901,0.21421712,813.35,812.18,1.05666488]
[1754803883100,0.21421712,813.35,812.19,1.05666488]
[1754803883301,0.21421712,813.35,812.2,2.71030022]
[1754803883508,0.21421712,813.35,812.23,1.65363534]
[1754803883707,0.21421712,813.35,812.42,1.65363534]
[1754803884008,0.21421712,813.35,812.56,1.65363534]
[1754803884307,0.21421712,813.35,811.31,2.75971933]
[1754803884308,0.21421712,813.35,812.55,1.65363534]
[1754803884605,0.21421712,813.35,812.56,1.65363534]
[1754803885104,0.21421712,813.35,812.69,1.65363534]
[1754803886409,0.21421712,813.35,812.67,1.65363534]
[1754803887308,0.21421712,813.35,812.65,1.65363534]
[1754803887608,0.21421712,813.35,812.76,1.65363534]
[1754803888409,0.21421712,813.35,812.61,1.65363534]
[1754803888611,0.21421712,813.35,812.6,1.65363534]
[1754803889205,0.21421712,813.35,812.56,1.65363534]
[1754803889410,0.21421712,813.35,812.57,1.05419397]
[1754803889611,0.21421712,813.35,812.58,1.05419397]
[1754803889811,0.21421712,813.35,812.6,1.65363534]
[1754803890012,0.21421712,813.35,812.62,1.65363534]
[1754803890207,0.21421712,813.35,812.57,1.65363534]
[1754803890412,0.21421712,813.35,812.54,1.65363534]
[1754803890607,0.21421712,813.35,812.55,1.05374299]
[1754803890812,0.21421712,813.35,812.56,1.05374299]
[1754803891012,0.21421712,813.35,812.53,1.65363534]
[1754803891214,0.21421712,813.35,812.54,1.05374288]
[1754803891511,0.21421712,813.35,812.55,1.0534289]
[1754803891713,0.21421712,813.35,812.56,1.0534289]
[1754803891909,0.21421712,813.35,812.51,1.65363534]
[1754803892114,0.21421712,813.35,812.52,1.05342879]
[1754803892413,0.21421712,813.35,812.53,1.05342879]
[1754803892610,0.21421712,813.35,812.54,1.05342879]
[1754803892811,0.21421712,813.35,812.55,1.05342879]
[1754803893111,0.21421712,813.35,812.56,1.05342879]
[1754803893311,0.21421712,813.35,812.46,1.65363534]
[1754803893510,0.21421712,813.35,812.47,1.05286906]
[1754803893710,0.21421712,813.35,812.48,1.05286906]
[1754803893909,0.21421712,813.35,812.65,1.65363534]
[1754803894614,0.21421712,813.35,812.63,1.65363534]
[1754803895114,0.21421712,813.35,812.64,1.65363534]
[1754803895314,0.21421712,813.35,812.8,1.65363534]
[1754803895514,0.21421712,813.35,812.79,1.65363534]
[1754803896414,0.21421712,813.35,812.77,1.65363534]
[1754803897414,0.21421712,813.35,812.75,1.65363534]
[1754803897609,0.21421712,813.35,812.74,1.65363534]
[1754803898314,0.21421712,813.35,812.73,1.65363534]
[1754803899614,0.21421712,813.35,812.71,1.65363534]
[1754803900111,0.21421712,813.35,812.58,1.65363534]
[1754803900613,0.21421712,813.35,812.6,1.65363534]
[1754803901016,0.21421712,813.35,812.61,1.65363534]
[1754803901417,0.21421712,813.35,812.6,1.65363534]
[1754803902218,0.21421712,813.35,812.59,1.65363534]
[1754803902414,0.21421712,813.35,812.58,1.65363534]
[1754803902716,0.21421712,813.35,812.59,1.65363534]
[1754803903318,0.21421712,813.35,812.58,1.65363534]
[1754803903714,0.21421712,813.35,812.54,1.65363534]
[1754803903918,0.21421712,813.35,812.56,1.65363534]
[1754803904419,0.21421712,813.35,812.55,1.65363534]
[1754803904915,0.21421712,813.35,812.54,1.65363534]
[1754803905115,0.21421712,813.35,812.55,1.65363534]
[1754803905317,0.21421712,813.35,812.54,1.65363534]
[1754803906422,0.21421712,813.35,812.53,1.65363534]
[1754803907319,0.21421712,813.35,812.54,1.65363534]
[1754803908623,0.21421712,813.35,812.53,1.65363534]
[1754803909124,0.21421712,813.35,812.61,1.65363534]
[1754803909325,0.21421712,813.35,812.6,1.65363534]
[1754803910024,0.21421712,813.35,812.61,1.65363534]
[1754803910424,0.21421712,813.35,812.66,1.65363534]
[1754803910625,0.21421712,813.35,812.75,1.65363534]
[1754803910826,0.21421712,813.35,812.85,1.65363534]
[1754803911027,0.21421712,813.35,812.87,1.65363534]
[1754803911327,0.21421712,813.35,812.88,1.65363534]
[1754803911525,0.21421712,813.35,812.91,1.65363534]
[1754803911725,0.21421712,813.35,812.93,1.65363534]
[1754803911928,0.21421712,813.35,812.94,1.65363534]
[1754803912127,0.21421712,813.35,812.93,1.65363534]
[1754803912326,0.21421712,813.35,812.91,1.65363534]
[1754803912824,0.21421712,813.35,812.92,1.65363534]
[1754803913323,0.21421712,813.35,812.9,1.65363534]
[1754803914025,0.21421712,813.35,812.82,1.65363534]
[1754803914724,0.21421712,813.35,812.83,1.65363534]
[1754803914925,0.21421712,813.35,813.11,1.09701276]
[1754803915526,0.21421712,813.35,813.07,1.09701276]
[1754803916431,0.21421712,813.35,813.04,1.09701276]
[1754803916927,0.21421712,813.35,813.06,1.09701276]
[1754803918633,0.21421712,813.35,813.05,1.09701276]
[1754803918931,0.21421712,813.35,813.06,1.09701276]
[1754803919631,0.21421712,813.35,813.05,1.09701276]
[1754803921132,0.21421712,813.35,813.04,1.09701276]
[1754803921435,0.21421712,813.35,812.29,2.75971933]
[1754803921436,0.21421712,813.35,813.06,1.09701276]
[1754803922234,0.21421712,813.35,813.03,1.09701276]
[1754803922539,0.21421712,813.35,813.04,1.09701276]
[1754803923832,0.21421712,813.35,813.12,1.09701276]
[1754803924538,0.21421712,813.35,813.13,1.09701276]
[1754803924740,0.21421712,813.35,813.15,1.09701276]
[1754803925235,0.21421712,813.35,813.18,1.09701276]
[1754803925440,0.21421712,813.35,813.19,1.09701276]
[1754803925637,0.21421712,813.35,813.17,1.09701276]
[1754803926940,0.21421712,813.35,813.18,1.09701276]
[1754803927137,0.21421712,813.35,813.17,1.09701276]
[1754803927341,0.21421712,813.35,813.18,1.09701276]
[1754803928241,0.21421712,813.35,813.17,1.09701276]
[1754803928439,0.21421712,813.35,813.18,1.09701276]
[1754803929442,0.21421712,813.35,813.19,1.09701276]
[1754803930639,0.21421712,813.35,813.2,1.09701276]
[1754803931345,0.21421712,813.35,813.21,1.09701276]
[1754803931845,0.21421712,813.35,813.22,1.09701276]
[1754803932245,0.21421712,813.35,813.21,1.09701276]
[1754803932442,0.21421712,813.35,813.23,1.09701276]
[1754803933141,0.21421712,813.35,813.22,1.09701276]
[1754803933345,0.21421712,813.35,813.23,1.09701276]
[1754803934349,0.21421712,813.35,813.17,1.09701276]
[1754803934944,0.21421712,813.35,813.2,1.09701276]
[1754803935548,0.21421712,813.35,813.22,1.09701276]
[1754803936249,0.21421712,813.35,813.23,1.09701276]
[1754803936449,0.21421712,813.35,813.24,1.09701276]
[1754803936649,0.21421712,813.35,813.23,1.09701276]
[1754803937349,0.21421712,813.35,813.26,1.09701276]
[1754803937547,0.21421712,813.35,813.25,1.09701276]
[1754803937849,0.21421712,813.35,813.13,1.09701276]
[1754803938248,0.21421712,813.35,813.17,1.09701276]
[1754803939451,0.21421712,813.35,813.21,1.09701276]
[1754803939651,0.21421712,813.35,813.18,1.09701276]
[1754803940351,0.21421712,813.35,813.23,1.09701276]
[1754803941051,0.21421712,813.35,812.33,2.75971933]
[1754803941052,0.21421712,813.35,813.15,1.09701276]
[1754803941250,0.21421712,813.35,813.18,1.09701276]
[1754803941650,0.21421712,813.35,813.15,1.09701276]
[1754803941853,0.21421712,813.35,812.96,1.65363534]
[1754803941854,0.21421712,813.35,813.13,1.09701276]
[1754803942349,0.21421712,813.35,813.19,1.09701276]
[1754803942553,0.21421712,813.35,813.13,1.09701276]
[1754803943351,0.21421712,813.35,813.15,1.09701276]
[1754803943553,0.21421712,813.35,812.93,1.09701276]
[1754803943755,0.21421712,813.35,812.88,1.09701276]
[1754803944249,0.21421712,813.35,812.87,1.09701276]
[1754803944454,0.21421712,813.35,812.88,1.09701276]
[1754803944655,0.21421712,813.35,812.98,1.09701276]
[1754803944953,0.21421712,813.35,812.81,1.65363534]
[1754803944954,0.21421712,813.35,812.95,1.09701276]
[1754803945154,0.21421712,813.35,812.87,1.09701276]
[1754803946352,0.21421712,813.35,812.85,1.09701276]
[1754803946555,0.21421712,813.35,812.84,1.09701276]
[1754803947253,0.21421712,813.35,812.82,1.09701276]
[1754803947452,0.21421712,813.35,812.81,1.09701276]
[1754803948256,0.21421712,813.35,812.79,1.09701276]
[1754803948653,0.21421712,813.35,812.8,1.09701276]
[1754803948854,0.21421712,813.35,812.81,1.09701276]
[1754803949254,0.21421712,813.35,812.8,1.09701276]
[1754803949554,0.21421712,813.35,812.79,1.09701276]
[1754803950155,0.21421712,813.35,812.78,1.09701276]
[1754803950361,0.21421712,813.35,812.77,1.09701276]
[1754803950960,0.21421712,813.35,812.78,1.09701276]
[1754803951254,0.21421712,813.35,812.76,1.09701276]
[1754803952457,0.21421712,813.35,811.93,2.75971933]
[1754803952458,0.21421712,813.35,812.75,1.09701276]
[1754803952656,0.21421712,813.35,812.79,1.09701276]
[1754803952858,0.21421712,813.35,812.8,1.09701276]
[1754803953055,0.21421712,813.35,812.85,1.09701276]
[1754803954059,0.21421712,813.35,812.83,1.09701276]
[1754803954356,0.21421712,813.35,812.82,1.09701276]
[1754803955859,0.21421712,813.35,812.8,1.09701276]
[1754803956456,0.21421712,813.35,812.79,1.09701276]
[1754803958162,0.21421712,813.35,812.78,1.09701276]
[1754803958560,0.21421712,813.35,812.88,1.09701276]
[1754803958764,0.21421712,813.35,812.9,1.09701276]
[1754803959264,0.21421712,813.35,812.89,1.09701276]
[1754803959962,0.21421712,813.35,812.91,1.09701276]
[1754803960162,0.21421712,813.35,812.92,1.09701276]
[1754803962566,0.21421712,813.35,812.91,1.09701276]
[1754803962865,0.21421712,813.35,812.75,1.65363534]
[1754803962866,0.21421712,813.35,812.92,1.09701276]
[1754803964068,0.21421712,813.35,812.8,1.09701276]
[1754803965470,0.21421712,813.35,812.79,1.09701276]
[1754803966171,0.21421712,813.35,812.8,1.09701276]
[1754803967467,0.21421712,813.35,812.79,1.09701276]
[1754803968170,0.21421712,813.35,812.8,1.09701276]
[1754803968370,0.21421712,813.35,812.86,1.09701276]
[1754803968569,0.21421712,813.35,812.6,1.09701276]
[1754803968772,0.21421712,813.35,812.62,1.09701276]
[1754803969072,0.21421712,813.35,812.63,1.05172128]
[1754803969367,0.21421712,813.35,812.64,1.05172128]
[1754803969571,0.21421712,813.35,812.65,1.05172128]
[1754803969871,0.21421712,813.35,812.66,1.05172128]
[1754803970168,0.21421712,813.35,812.67,1.05172128]
[1754803970368,0.21421712,813.35,812.68,1.05172128]
[1754803970568,0.21421712,813.35,812.69,1.05172128]
[1754803970769,0.21421712,813.35,812.7,1.05172128]
[1754803970973,0.21421712,813.35,812.61,1.09701276]
[1754803971170,0.21421712,813.35,812.62,2.14873395]
[1754803971374,0.21421712,813.35,812.63,1.05172119]
[1754803971572,0.21421712,813.35,812.64,1.05172119]
[1754803971771,0.21421712,813.35,812.65,1.05172119]
[1754803971973,0.21421712,813.35,812.66,1.05172119]
[1754803972279,0.21421712,813.35,812.67,1.05172119]
[1754803972476,0.21421712,813.35,812.68,1.05172119]
[1754803972777,0.21421712,813.35,812.69,1.05172119]
[1754803973075,0.21421712,813.35,812.63,1.09701276]
[1754803973375,0.21421712,813.35,812.64,1.05188559]
[1754803973576,0.21421712,813.35,812.66,1.09701276]
[1754803973773,0.21421712,813.35,812.72,1.09701276]
[1754803973978,0.21421712,813.35,812.88,1.09701276]
[1754803974175,0.21421712,813.35,812.94,1.09701276]
[1754803974379,0.21421712,813.35,813.04,1.09701276]
[1754803975282,0.21421712,813.35,813.05,1.09701276]
[1754803977086,0.21421712,813.35,813.06,1.09701276]
[1754803978087,0.21421712,813.35,813.05,1.09701276]
[1754803978285,0.21421712,813.35,813.06,1.09701276]
[1754803978488,0.21421712,813.35,813.11,1.09701276]
[1754803978789,0.21421712,813.35,813.13,1.09701276]
[1754803979189,0.21421712,813.35,813.14,1.09701276]
[1754803979787,0.21421712,813.35,813.21,1.09701276]
[1754803979987,0.21421712,813.35,813.2,1.09701276]
[1754803980292,0.21421712,813.35,813.21,1.09701276]
[1754803981587,0.21421712,813.35,813.19,1.09701276]
[1754803981790,0.21421712,813.35,813.2,1.09701276]
[1754803982590,0.21421712,813.35,813.21,1.09701276]
[1754803982789,0.21421712,813.35,813.22,1.09701276]
[1754803983493,0.21421712,813.35,813.23,1.09701276]
[1754803983889,0.21421712,813.35,813.24,1.09701276]
[1754803984091,0.21421712,813.35,813.22,1.09701276]
[1754803984392,0.21421712,813.35,813.23,1.09701276]
[1754803985192,0.21421712,813.35,813.24,1.09701276]
[1754803985396,0.21421712,813.35,813.23,1.09701276]
[1754803985588,0.21421712,813.35,813.22,1.09701276]
[1754803986194,0.21421712,813.35,813.23,1.09701276]
[1754803986490,0.21421712,813.35,813.24,1.09701276]
[1754803987189,0.21421712,813.35,813.25,1.09701276]
[1754803988098,0.21421712,813.35,813.26,1.09701276]
[1754803988699,0.21421712,813.35,813.17,1.09701276]
[1754803988900,0.21421712,813.35,813.14,1.09701276]
[1754803989193,0.21421712,813.35,812.34,3.86360707]
[1754803989194,0.21421712,813.35,813.05,1.09701276]
[1754803989395,0.21421712,813.35,812.11,2.75971933]
[1754803989396,0.21421712,813.35,813.06,1.09701276]
[1754803989609,0.21421712,813.35,813.02,1.09701276]
[1754803990102,0.21421712,813.35,813.01,1.09701276]
[1754803990395,0.21421712,813.35,813.02,1.09701276]
[1754803991100,0.21421712,813.35,813.0,1.09701276]
[1754803991300,0.21421712,813.35,813.02,1.09701276]
[1754803992401,0.21421712,813.35,813.03,1.09701276]
[1754803992602,0.21421712,813.35,813.09,1.09701276]
[1754803993098,0.21421712,813.35,812.93,1.65363534]
[1754803993099,0.21421712,813.35,813.11,1.09701276]
[1754803993398,0.21421712,813.35,813.14,1.09701276]
[1754803994295,0.21421712,813.35,813.15,1.09701276]
[1754803995210,0.21421712,813.35,813.01,1.65363534]
[1754803995211,0.21421712,813.35,813.17,1.09701276]
[1754803995998,0.21421712,813.35,813.16,1.09701276]
[1754803996204,0.21421712,813.35,813.02,1.65363534]
[1754803996205,0.21421712,813.35,813.18,1.09701276]
[1754803996901,0.21421712,813.35,812.47,2.75971933]
[1754803996902,0.21421712,813.35,813.05,1.09701276]
[1754803997101,0.5,813.44,812.86,0.88281278]
[1754803997301,0.5,813.44,812.5,1.65363534]
[1754803997500,0.5,813.44,812.51,1.65363534]
[1754803998606,0.352,813.42,812.51,1.65363534]
[1754803998816,0.5,813.44,812.51,1.65363534]
[1754803999306,0.5,813.44,812.52,1.65363534]
[1754803999607,0.5,813.44,812.53,1.65363534]
[1754803999805,0.5,813.44,812.6,1.65363534]
[1754804000207,0.2142468,813.24,812.63,1.65363534]
[1754804000408,0.2142468,813.24,812.64,1.65363534]
[1754804001004,0.2142468,813.24,812.66,1.65363534]
[1754804001204,0.2142468,813.24,812.69,1.65363534]
[1754804002609,0.2142468,813.24,812.86,1.65363534]
[1754804003207,0.2142468,813.24,812.85,1.65363534]
[1754804003406,0.2142468,813.24,812.9,1.65363534]
[1754804003620,0.2142468,813.24,812.91,1.65363534]
[1754804004110,0.2142468,813.24,812.81,1.65363534]
[1754804005106,0.2142468,813.24,812.82,1.65363534]
[1754804006807,0.2142468,813.24,812.88,1.65363534]
[1754804007019,0.2142468,813.24,812.96,1.65363534]
[1754804007310,0.2142468,813.24,812.97,1.65363534]
[1754804007513,0.2142468,813.24,812.99,1.65363534]
[1754804007913,0.2142468,813.24,813.03,1.65363534]
[1754804008114,0.2142468,813.24,813.04,1.65363534]
[1754804008309,0.2142468,813.24,813.05,1.65363534]
[1754804009014,0.2142468,813.24,813.17,1.65363534]
[1754804009510,0.2142468,813.24,813.15,1.65363534]
[1754804009711,0.2142468,813.24,813.14,1.65363534]
[1754804009915,0.2142468,813.24,813.12,1.65363534]
[1754804010116,0.2142468,813.24,813.16,1.65363534]
[1754804010321,0.2142468,813.24,813.15,1.65363534]
[1754804011311,0.2142468,813.24,813.14,1.65363534]
[1754804011515,0.2142468,813.24,813.12,1.65363534]
[1754804011917,0.2142468,813.24,813.09,1.65363534]
[1754804012216,0.2142468,813.24,813.1,1.65363534]
[1754804012417,0.2142468,813.24,813.09,1.65363534]
[1754804012614,0.2142468,813.24,813.08,1.65363534]
[1754804013325,0.2142468,813.24,813.07,1.65363534]
[1754804013919,0.2142468,813.24,813.06,1.65363534]
[1754804014125,0.2142468,813.24,813.16,1.65363534]
[1754804015016,0.2142468,813.24,813.02,1.65363534]
[1754804015417,0.2142468,813.24,813.01,1.65363534]
[1754804016221,0.2142468,813.24,813.0,1.65363534]
[1754804016622,0.2142468,813.24,812.99,1.65363534]
[1754804016817,0.2142468,813.24,812.98,1.65363534]
[1754804017820,0.2142468,813.24,812.99,1.65363534]
[1754804018517,0.2142468,813.24,813.0,1.65363534]
[1754804019823,0.2142468,813.24,813.01,1.65363534]
[1754804020421,0.2142468,813.24,813.0,1.65363534]
[1754804020623,0.2142468,813.24,813.09,1.65363534]
[1754804021423,0.2142468,813.24,813.1,1.65363534]
[1754804021718,0.2142468,813.24,813.2,1.65363534]
[1754804022519,0.2142468,813.24,813.19,1.65363534]
[1754804023721,0.2142468,813.24,813.04,1.65363534]
[1754804023926,0.2142468,813.24,813.07,1.65363534]
[1754804024126,0.2142468,813.24,813.06,1.65363534]
[1754804028430,0.2142468,813.24,813.07,1.65363534]
[1754804030827,0.2142468,813.24,813.11,1.65363534]
[1754804031031,0.2142468,813.24,813.14,1.65363534]
[1754804031331,0.2142468,813.24,813.15,1.65363534]
[1754804031531,0.2142468,813.24,813.14,1.65363534]
[1754804031831,0.2142468,813.24,812.31,2.75971933]
[1754804032029,0.2142468,813.24,812.65,2.75971933]
[1754804032232,0.2142468,813.24,812.66,1.05528058]
[1754804032429,0.2142468,813.24,812.67,1.05528058]
[1754804032627,0.2142468,813.24,812.68,1.05528058]
[1754804032832,0.2142468,813.24,812.69,1.05528058]
[1754804033127,0.2142468,813.24,812.7,1.05528058]
[1754804033330,0.2142468,813.24,812.65,2.75971933]
[1754804033331,0.2142468,813.24,812.71,1.05528058]
[1754804033529,0.2142468,813.24,812.31,3.86360707]
[1754804033530,0.2142468,813.24,812.72,1.05528058]
[1754804033829,0.2142468,813.24,812.73,1.05528058]
[1754804034133,0.2142468,813.24,812.74,1.05528058]
[1754804034330,0.2142468,813.24,812.65,2.75971933]
[1754804034528,0.2142468,813.24,812.67,2.75971933]
[1754804034732,0.03099645,813.24,812.68,1.0549567]
[1754804034927,0.5,814.03,812.69,1.0549567]
[1754804035233,0.5,814.03,813.49,1.10266412]
[1754804036140,0.5,814.03,813.5,1.10266412]
[1754804036337,0.5,814.03,813.49,1.10266412]
[1754804036750,0.5,814.03,813.26,1.10266412]
[1754804036937,0.5,814.03,813.0,1.65399618]
[1754804036938,0.5,814.12,813.27,1.10266412]
[1754804037238,0.5,814.17,813.35,1.10266412]
[1754804037437,0.346,814.14,813.43,1.10266412]
[1754804037651,0.346,814.16,813.45,1.10266412]
[1754804037837,0.5,814.17,813.45,1.10266412]
[1754804038039,0.2139945,813.97,813.38,1.10266412]
[1754804038342,0.2139945,813.97,813.36,1.10266412]
[1754804038549,0.2139945,813.97,813.34,1.10266412]
[1754804038743,0.2139945,813.97,813.32,1.10266412]
[1754804039345,0.2139945,813.97,813.31,1.10266412]
[1754804039843,0.2139945,813.97,813.32,1.10266412]
[1754804040040,0.2139945,813.97,813.34,1.10266412]
[1754804040443,0.2139945,813.97,813.35,1.10266412]
[1754804041239,0.2139945,813.97,813.08,1.65399618]
[1754804041240,0.2139945,813.97,813.34,1.10266412]
[1754804042044,0.2139945,813.97,813.36,1.10266412]
[1754804042240,0.2139945,813.97,813.37,1.10266412]
[1754804042444,0.2139945,813.97,813.36,1.10266412]
[1754804043346,0.2139945,813.97,813.35,1.10266412]
[1754804044046,0.2139945,813.97,813.31,1.10266412]
[1754804044744,0.2139945,813.97,813.38,1.10266412]
[1754804044945,0.2139945,813.97,813.55,1.10266412]
[1754804045349,0.2139945,813.97,813.53,1.10266412]
[1754804046252,0.2139945,813.97,812.58,2.75971933]
[1754804046253,0.2139945,813.97,813.51,1.10266412]
[1754804047255,0.2139945,813.97,813.52,1.10266412]
[1754804047555,0.2139945,813.97,813.63,1.10266412]
[1754804048054,0.2139945,813.97,813.62,1.10266412]
[1754804048255,0.2139945,813.97,813.69,1.10266412]
[1754804048555,0.2139945,813.97,813.68,1.10266412]
[1754804048761,0.2139945,813.97,813.71,1.10266412]
[1754804049054,0.2139945,813.97,813.72,1.10266412]
[1754804049254,0.2139945,813.97,813.69,1.10266412]
[1754804050250,0.2139945,813.97,813.67,1.10266412]
[1754804050854,0.2139945,813.97,813.69,1.10266412]
[1754804051051,0.2139945,813.97,813.7,1.10266412]
[1754804051254,0.2139945,813.97,812.45,3.86360707]
[1754804051255,0.2139945,813.97,813.68,1.10266412]
[1754804052056,0.2139945,813.97,813.72,1.10266412]
[1754804052352,0.2139945,813.97,813.7,1.10266412]
[1754804052664,0.2139945,813.97,813.69,1.10266412]
[1754804052964,0.2139945,813.97,813.73,1.10266412]
[1754804053156,0.2139945,813.97,813.71,1.10266412]
[1754804053654,0.2139945,813.97,813.7,1.10266412]
[1754804053853,0.2139945,813.97,813.71,1.10266412]
[1754804054156,0.2139945,813.97,813.6,1.10266412]
[1754804054357,0.2139945,813.97,813.58,1.10266412]
[1754804055257,0.2139945,813.97,813.57,1.10266412]
[1754804055558,0.2139945,813.97,813.65,1.10266412]